[Event "*** Titled Tuesday Blitz"]
[Site "Chess.com"]
[Date "2020.05.12"]
[Round "6"]
[White "marianokar"]
[Black "Rodalquilar"]
[Result "0-1"]
[WhiteElo "2389"]
[BlackElo "2619"]
[TimeControl "180+1"]
[EndTime "11:07:23 PDT"]
[Termination "Rodalquilar won on time"]

1. e4 {[%clk 0:03:00.9]} 1... d5 {[%clk 0:02:59.2]} 2. exd5 {[%clk 0:02:59]}
2... Qxd5 {[%clk 0:03:00.1]} 3. Nc3 {[%clk 0:02:59.3]} 3... Qa5 {[%clk 0:03:00]}
4. d4 {[%clk 0:02:56.8]} 4... Nf6 {[%clk 0:03:00.2]} 5. Bc4 {[%clk 0:02:57.2]}
5... Bf5 {[%clk 0:02:59.2]} 6. Nf3 {[%clk 0:02:51.7]} 6... e6 {[%clk 0:02:59.2]}
7. Bd2 {[%clk 0:02:51.7]} 7... Bb4 {[%clk 0:02:59]} 8. a3 {[%clk 0:02:49.1]}
8... Bxc3 {[%clk 0:02:58.6]} 9. Bxc3 {[%clk 0:02:48.7]} 9... Qb6 {[%clk
0:02:59.2]} 10. d5 {[%clk 0:02:11.5]} 10... exd5 {[%clk 0:02:34.1]} 11. Bxd5
{[%clk 0:02:10]} 11... O-O {[%clk 0:02:33.6]} 12. Bxf6 {[%clk 0:01:53.7]} 12...
gxf6 {[%clk 0:02:21.2]} 13. O-O {[%clk 0:01:48.1]} 13... Bg6 {[%clk 0:02:05.9]}
14. Bb3 {[%clk 0:01:32.4]} 14... Na6 {[%clk 0:02:01.5]} 15. Qd4 {[%clk
0:01:17.2]} 15... Rad8 {[%clk 0:01:50.2]} 16. Qxb6 {[%clk 0:01:15.5]} 16... axb6
{[%clk 0:01:51.1]} 17. Rad1 {[%clk 0:01:13.6]} 17... Nc5 {[%clk 0:01:51.1]} 18.
Nd4 {[%clk 0:01:11.2]} 18... Nxb3 {[%clk 0:01:44.8]} 19. cxb3 {[%clk 0:01:06.2]}
19... Rd5 {[%clk 0:01:44.8]} 20. Nf3 {[%clk 0:00:59.6]} 20... Rfd8 {[%clk
0:01:31.2]} 21. Rxd5 {[%clk 0:00:59.6]} 21... Rxd5 {[%clk 0:01:32.1]} 22. Rc1
{[%clk 0:01:00]} 22... c5 {[%clk 0:01:29]} 23. Kf1 {[%clk 0:00:49.8]} 23... Rd3
{[%clk 0:01:28.8]} 24. b4 {[%clk 0:00:20]} 24... cxb4 {[%clk 0:01:29.7]} 25.
axb4 {[%clk 0:00:20.9]} 25... Rb3 {[%clk 0:01:30]} 26. Rd1 {[%clk 0:00:20.8]}
26... Rxb2 {[%clk 0:01:23.4]} 27. Rd4 {[%clk 0:00:20.8]} 27... b5 {[%clk
0:01:14.6]} 28. Nd2 {[%clk 0:00:20.6]} 28... Bf5 {[%clk 0:01:06.7]} 29. f4
{[%clk 0:00:20.3]} 29... Be6 {[%clk 0:01:06.9]} 30. Ke2 {[%clk 0:00:20.3]} 30...
Bc4+ {[%clk 0:01:04.6]} 31. Ke3 {[%clk 0:00:17.2]} 31... Rxb4 {[%clk 0:01:04.8]}
32. Rd7 {[%clk 0:00:15.9]} 32... Kg7 {[%clk 0:00:53]} 33. f5 {[%clk 0:00:15.8]}
33... h5 {[%clk 0:00:50.2]} 34. h4 {[%clk 0:00:11.8]} 34... Ba2 {[%clk
0:00:40.7]} 35. g3 {[%clk 0:00:11.2]} 35... Bb1 {[%clk 0:00:41.1]} 36. Rxb7
{[%clk 0:00:10]} 36... Bxf5 {[%clk 0:00:40.4]} 37. Nf3 {[%clk 0:00:10.6]} 37...
Rb3+ {[%clk 0:00:36.1]} 38. Kf4 {[%clk 0:00:10.7]} 38... Bg4 {[%clk 0:00:24.9]}
39. Nd4 {[%clk 0:00:11.1]} 39... Rd3 {[%clk 0:00:20.7]} 40. Nxb5 {[%clk
0:00:07.7]} 40... Rf3+ {[%clk 0:00:20.8]} 41. Ke4 {[%clk 0:00:08]} 41... Rxg3
{[%clk 0:00:21.3]} 42. Rc7 {[%clk 0:00:05.5]} 42... Rh3 {[%clk 0:00:20.5]} 43.
Nd6 {[%clk 0:00:05]} 43... Be6 {[%clk 0:00:20.7]} 44. Nf5+ {[%clk 0:00:03.7]}
44... Bxf5+ {[%clk 0:00:20.4]} 45. Kxf5 {[%clk 0:00:04.6]} 45... Rxh4 {[%clk
0:00:21]} 46. Rc1 {[%clk 0:00:04.2]} 46... Rg4 {[%clk 0:00:19.2]} 47. Rh1 {[%clk
0:00:03.7]} 47... Rg5+ {[%clk 0:00:19.5]} 48. Kf4 {[%clk 0:00:03.5]} 48... Kg6
{[%clk 0:00:20.4]} 49. Rd1 {[%clk 0:00:03.4]} 49... Rg4+ {[%clk 0:00:20.4]} 50.
Kf3 {[%clk 0:00:02.9]} 50... Rb4 {[%clk 0:00:20.3]} 51. Rd8 {[%clk 0:00:03.8]}
51... f5 {[%clk 0:00:19]} 52. Rg8+ {[%clk 0:00:03.2]} 52... Kf6 {[%clk
0:00:19.2]} 53. Rh8 {[%clk 0:00:03.7]} 53... h4 {[%clk 0:00:19.7]} 54. Kf2
{[%clk 0:00:03.6]} 54... Kg5 {[%clk 0:00:19]} 55. Kf3 {[%clk 0:00:03.9]} 55...
Rb3+ {[%clk 0:00:18.8]} 56. Kf2 {[%clk 0:00:04.3]} 56... Kg4 {[%clk 0:00:18.1]}
57. Rh7 {[%clk 0:00:02.3]} 57... h3 {[%clk 0:00:16.3]} 58. Rh8 {[%clk
0:00:01.5]} 58... h2 {[%clk 0:00:15.5]} 59. Rxh2 {[%clk 0:00:01.4]} 59... Rb2+
{[%clk 0:00:15.9]} 60. Kg1 {[%clk 0:00:02.3]} 60... Rxh2 {[%clk 0:00:16]} 61.
Kxh2 {[%clk 0:00:03.2]} 61... Kf3 {[%clk 0:00:16.5]} 0-1

[Event "*** Titled Tuesday Blitz"]
[Site "Chess.com"]
[Date "2020.05.12"]
[Round "6"]
[White "jacky72"]
[Black "Sychev_Klementy"]
[Result "0-1"]
[WhiteElo "2654"]
[BlackElo "2859"]
[TimeControl "180+1"]
[EndTime "11:07:24 PDT"]
[Termination "Sychev_Klementy won by checkmate"]

1. d4 {[%clk 0:03:00.9]} 1... Nf6 {[%clk 0:02:58.9]} 2. c4 {[%clk 0:02:59]} 2...
g6 {[%clk 0:02:59.1]} 3. Nc3 {[%clk 0:02:58.1]} 3... d5 {[%clk 0:02:59.3]} 4.
Nf3 {[%clk 0:02:55]} 4... Bg7 {[%clk 0:02:59.3]} 5. h4 {[%clk 0:02:55.4]} 5...
c5 {[%clk 0:02:45.4]} 6. dxc5 {[%clk 0:02:54.7]} 6... Be6 {[%clk 0:02:30.3]} 7.
cxd5 {[%clk 0:02:45.9]} 7... Nxd5 {[%clk 0:02:28.9]} 8. Nxd5 {[%clk 0:02:46.3]}
8... Qxd5 {[%clk 0:02:14.5]} 9. Qxd5 {[%clk 0:02:44.6]} 9... Bxd5 {[%clk
0:02:13.7]} 10. g3 {[%clk 0:02:36.2]} 10... Na6 {[%clk 0:02:05.7]} 11. Bg2
{[%clk 0:02:32.5]} 11... Nb4 {[%clk 0:01:35]} 12. O-O {[%clk 0:02:08.1]} 12...
Nc2 {[%clk 0:01:33.2]} 13. Bf4 {[%clk 0:02:08.1]} 13... Nxa1 {[%clk 0:01:31]}
14. Rxa1 {[%clk 0:02:09]} 14... Bxb2 {[%clk 0:01:28.8]} 15. Rb1 {[%clk
0:02:06.1]} 15... Bg7 {[%clk 0:01:27.4]} 16. Ne5 {[%clk 0:02:05.9]} 16... Bxg2
{[%clk 0:01:18.9]} 17. Kxg2 {[%clk 0:02:06.8]} 17... Bxe5 {[%clk 0:01:16.1]} 18.
Bxe5 {[%clk 0:02:07.7]} 18... f6 {[%clk 0:01:16.3]} 19. Bf4 {[%clk 0:01:56]}
19... O-O-O {[%clk 0:01:10.1]} 20. c6 {[%clk 0:01:52]} 20... b6 {[%clk
0:01:02.6]} 21. Rc1 {[%clk 0:01:40.5]} 21... e5 {[%clk 0:00:59.5]} 22. Bh6
{[%clk 0:01:40.8]} 22... Rd6 {[%clk 0:00:57.8]} 23. f4 {[%clk 0:01:39.2]} 23...
Kc7 {[%clk 0:00:48.1]} 24. fxe5 {[%clk 0:01:36.5]} 24... fxe5 {[%clk 0:00:45.8]}
25. Bg7 {[%clk 0:01:30.8]} 25... Re8 {[%clk 0:00:40]} 26. Rf1 {[%clk 0:01:31]}
26... Kxc6 {[%clk 0:00:38.7]} 27. Rc1+ {[%clk 0:01:26.8]} 27... Kb7 {[%clk
0:00:34.6]} 28. Rc2 {[%clk 0:01:27]} 28... Rd7 {[%clk 0:00:27.8]} 29. Bf6 {[%clk
0:01:24.8]} 29... Re6 {[%clk 0:00:27.2]} 30. Bg5 {[%clk 0:01:23.9]} 30... Rc6
{[%clk 0:00:27.1]} 31. Rb2 {[%clk 0:01:24.4]} 31... Rd5 {[%clk 0:00:20]} 32. Kf3
{[%clk 0:01:23.8]} 32... Rd4 {[%clk 0:00:18.9]} 33. e3 {[%clk 0:01:22.5]} 33...
Ra4 {[%clk 0:00:18.7]} 34. Rd2 {[%clk 0:01:20]} 34... Rc7 {[%clk 0:00:17.8]} 35.
g4 {[%clk 0:01:16.1]} 35... Rf7+ {[%clk 0:00:17.6]} 36. Kg3 {[%clk 0:01:16.4]}
36... Rc4 {[%clk 0:00:16.8]} 37. Rd5 {[%clk 0:01:14.2]} 37... Rc5 {[%clk
0:00:17.1]} 38. Rd8 {[%clk 0:01:12.4]} 38... a5 {[%clk 0:00:17]} 39. Re8 {[%clk
0:01:11.3]} 39... a4 {[%clk 0:00:16.5]} 40. h5 {[%clk 0:01:09.9]} 40... gxh5
{[%clk 0:00:16.2]} 41. gxh5 {[%clk 0:01:10.8]} 41... a3 {[%clk 0:00:16]} 42. Kg4
{[%clk 0:01:03.3]} 42... Rc4+ {[%clk 0:00:15.4]} 43. Kg3 {[%clk 0:01:01.8]}
43... Rc2 {[%clk 0:00:13.3]} 44. Be7 {[%clk 0:01:01.3]} 44... Rxa2 {[%clk
0:00:12.8]} 45. Bd6 {[%clk 0:01:01.5]} 45... Ra1 {[%clk 0:00:12.6]} 46. Bxe5
{[%clk 0:00:59.7]} 46... Rg1+ {[%clk 0:00:12.7]} 47. Kh2 {[%clk 0:01:00.1]}
47... Rg5 {[%clk 0:00:10.5]} 48. Bh8 {[%clk 0:00:53.4]} 48... a2 {[%clk
0:00:10.3]} 49. Re4 {[%clk 0:00:52.3]} 49... Rxh5+ {[%clk 0:00:10.4]} 50. Kg3
{[%clk 0:00:52.4]} 50... Rg5+ {[%clk 0:00:10.5]} 51. Kh4 {[%clk 0:00:52.7]}
51... Rg1 {[%clk 0:00:10.5]} 52. Ra4 {[%clk 0:00:52.1]} 52... Rf2 {[%clk
0:00:10.2]} 53. Be5 {[%clk 0:00:52.1]} 53... Rc2 {[%clk 0:00:08.1]} 54. Kh3
{[%clk 0:00:49.7]} 54... Rd1 {[%clk 0:00:07.6]} 55. Kg3 {[%clk 0:00:46.5]} 55...
Rd5 {[%clk 0:00:07.7]} 56. Bd4 {[%clk 0:00:44]} 56... Ra5 {[%clk 0:00:07.7]} 57.
Rb4 {[%clk 0:00:43]} 57... a1=Q {[%clk 0:00:07.7]} 58. Rxb6+ {[%clk 0:00:42.8]}
58... Kc7 {[%clk 0:00:07.1]} 59. Bxa1 {[%clk 0:00:41.3]} 59... Kxb6 {[%clk
0:00:07.1]} 60. Bd4+ {[%clk 0:00:42]} 60... Kc6 {[%clk 0:00:07.4]} 61. Kg4
{[%clk 0:00:42.7]} 61... Kd5 {[%clk 0:00:07.7]} 62. Kf4 {[%clk 0:00:42.3]} 62...
Rc7 {[%clk 0:00:07.8]} 63. Kg3 {[%clk 0:00:43.2]} 63... Rf7 {[%clk 0:00:07.9]}
64. Bc3 {[%clk 0:00:43.5]} 64... Ra3 {[%clk 0:00:07.4]} 65. Bd2 {[%clk 0:00:42]}
65... Ke4 {[%clk 0:00:07.6]} 66. Kh4 {[%clk 0:00:42.7]} 66... Rxe3 {[%clk
0:00:07.5]} 67. Kh5 {[%clk 0:00:43.6]} 67... Rh3+ {[%clk 0:00:07.3]} 68. Kg4
{[%clk 0:00:43.4]} 68... Rh2 {[%clk 0:00:07.6]} 69. Bf4 {[%clk 0:00:42.5]} 69...
Rg7+ {[%clk 0:00:07.4]} 70. Bg5 {[%clk 0:00:42.2]} 70... Rg2+ {[%clk 0:00:07.5]}
71. Kh5 {[%clk 0:00:43.1]} 71... R7xg5+ {[%clk 0:00:06.8]} 72. Kh6 {[%clk
0:00:44]} 72... R5g3 {[%clk 0:00:06.9]} 73. Kh5 {[%clk 0:00:42]} 73... Rh3#
{[%clk 0:00:02.5]} 0-1

[Event "*** Titled Tuesday Blitz"]
[Site "Chess.com"]
[Date "2020.05.12"]
[Round "6"]
[White "SerGo055"]
[Black "124chess"]
[Result "1-0"]
[WhiteElo "2569"]
[BlackElo "2779"]
[TimeControl "180+1"]
[EndTime "11:07:24 PDT"]
[Termination "SerGo055 won by resignation"]

1. d4 {[%clk 0:03:00.9]} 1... d5 {[%clk 0:03:00.1]} 2. Nf3 {[%clk 0:03:00.5]}
2... e6 {[%clk 0:02:59.7]} 3. Bf4 {[%clk 0:03:00.3]} 3... c5 {[%clk 0:02:56.9]}
4. e3 {[%clk 0:03:00.6]} 4... Nf6 {[%clk 0:02:57.2]} 5. c3 {[%clk 0:02:59]} 5...
Bd6 {[%clk 0:02:57.7]} 6. Bg3 {[%clk 0:02:58.7]} 6... O-O {[%clk 0:02:57.4]} 7.
Nbd2 {[%clk 0:02:58.3]} 7... Qc7 {[%clk 0:02:57.5]} 8. Be2 {[%clk 0:02:55.9]}
8... Nbd7 {[%clk 0:02:57.6]} 9. O-O {[%clk 0:02:55.3]} 9... b6 {[%clk
0:02:55.1]} 10. a4 {[%clk 0:02:51.4]} 10... a6 {[%clk 0:02:47.5]} 11. Re1 {[%clk
0:02:38.7]} 11... Bb7 {[%clk 0:02:47.6]} 12. Qc2 {[%clk 0:02:36.6]} 12... Rac8
{[%clk 0:02:43.3]} 13. Rad1 {[%clk 0:02:35.6]} 13... Rfe8 {[%clk 0:02:42.8]} 14.
Bd3 {[%clk 0:02:17.4]} 14... h6 {[%clk 0:02:37.1]} 15. Qb1 {[%clk 0:02:07.3]}
15... e5 {[%clk 0:02:29.6]} 16. dxe5 {[%clk 0:02:06.2]} 16... Nxe5 {[%clk
0:02:30.5]} 17. Nxe5 {[%clk 0:02:03]} 17... Bxe5 {[%clk 0:02:31.4]} 18. Nf3
{[%clk 0:02:01.7]} 18... Bxg3 {[%clk 0:02:30.5]} 19. hxg3 {[%clk 0:02:02.6]}
19... Rcd8 {[%clk 0:02:30.6]} 20. Qc2 {[%clk 0:01:59.8]} 20... Re7 {[%clk
0:01:53.9]} 21. Rd2 {[%clk 0:01:46.6]} 21... Rde8 {[%clk 0:01:53.7]} 22. Red1
{[%clk 0:01:43.8]} 22... Qc8 {[%clk 0:01:51.7]} 23. c4 {[%clk 0:01:41]} 23...
Qc7 {[%clk 0:00:27.9]} 24. cxd5 {[%clk 0:01:29.5]} 24... Nxd5 {[%clk 0:00:28.8]}
25. Bc4 {[%clk 0:01:29.7]} 25... Nb4 {[%clk 0:00:28.7]} 26. Qf5 {[%clk
0:01:27.6]} 26... Bxf3 {[%clk 0:00:26.7]} 27. gxf3 {[%clk 0:01:24.5]} 27... Qe5
{[%clk 0:00:26.2]} 28. Qxe5 {[%clk 0:01:17.2]} 28... Rxe5 {[%clk 0:00:27.1]} 29.
Rd6 {[%clk 0:01:13.9]} 29... Rf5 {[%clk 0:00:16]} 30. f4 {[%clk 0:01:08.7]}
30... Rf6 {[%clk 0:00:14.4]} 31. Rxf6 {[%clk 0:01:06.7]} 31... gxf6 {[%clk
0:00:15.3]} 32. Rd6 {[%clk 0:01:06.6]} 32... Rb8 {[%clk 0:00:15.8]} 33. Rxf6
{[%clk 0:01:05.7]} 33... Rb7 {[%clk 0:00:16.4]} 34. Rxh6 {[%clk 0:00:58.9]}
34... b5 {[%clk 0:00:15.6]} 35. axb5 {[%clk 0:00:58]} 35... axb5 {[%clk
0:00:16.5]} 36. Be2 {[%clk 0:00:57.4]} 36... c4 {[%clk 0:00:14.7]} 37. Rh5
{[%clk 0:00:56.3]} 37... Kg7 {[%clk 0:00:14.2]} 38. Kg2 {[%clk 0:00:54.4]} 38...
Na2 {[%clk 0:00:11.5]} 39. Rc5 {[%clk 0:00:48.9]} 39... Nc1 {[%clk 0:00:11.3]}
40. Bf3 {[%clk 0:00:48.1]} 40... Rb8 {[%clk 0:00:10.1]} 41. Be4 {[%clk
0:00:42.6]} 41... Nb3 {[%clk 0:00:09.8]} 42. Rc7 {[%clk 0:00:42.1]} 42... Nd2
{[%clk 0:00:07.8]} 43. Bd5 {[%clk 0:00:42]} 43... b4 {[%clk 0:00:05.7]} 44. Bxf7
{[%clk 0:00:27.1]} 44... c3 {[%clk 0:00:03]} 45. bxc3 {[%clk 0:00:26.5]} 45...
bxc3 {[%clk 0:00:02]} 46. Bd5+ {[%clk 0:00:26.4]} 46... Kf6 {[%clk 0:00:02.3]}
47. Rxc3 {[%clk 0:00:22]} 47... Rb2 {[%clk 0:00:02.9]} 48. g4 {[%clk 0:00:18.3]}
48... Nb1 {[%clk 0:00:02.8]} 49. Rb3 {[%clk 0:00:17.7]} 49... Rxb3 {[%clk
0:00:02.8]} 50. Bxb3 {[%clk 0:00:18.6]} 50... Nc3 {[%clk 0:00:02.3]} 51. Kf3
{[%clk 0:00:17.8]} 51... Nb5 {[%clk 0:00:02.5]} 52. g5+ {[%clk 0:00:17.8]} 52...
Kg7 {[%clk 0:00:02.9]} 53. f5 {[%clk 0:00:17.6]} 53... Nd6 {[%clk 0:00:03.4]}
54. Kf4 {[%clk 0:00:15.3]} 54... Nb7 {[%clk 0:00:04]} 55. e4 {[%clk 0:00:14.9]}
55... Nc5 {[%clk 0:00:04]} 56. Bc4 {[%clk 0:00:15.5]} 56... Na4 {[%clk
0:00:04.2]} 57. g6 {[%clk 0:00:14.4]} 57... Nb2 {[%clk 0:00:04.5]} 58. Bb5
{[%clk 0:00:13]} 58... Nd1 {[%clk 0:00:04.8]} 59. f3 {[%clk 0:00:13.4]} 59...
Nc3 {[%clk 0:00:05]} 60. Bc4 {[%clk 0:00:13.6]} 60... Na4 {[%clk 0:00:03.6]} 61.
Kg5 {[%clk 0:00:13.8]} 61... Nb6 {[%clk 0:00:03.8]} 62. f6+ {[%clk 0:00:14.2]}
1-0

[Event "*** Titled Tuesday Blitz"]
[Site "Chess.com"]
[Date "2020.05.12"]
[Round "6"]
[White "cukin84"]
[Black "wanyaland"]
[Result "1-0"]
[WhiteElo "2131"]
[BlackElo "2296"]
[TimeControl "180+1"]
[EndTime "11:07:25 PDT"]
[Termination "cukin84 won by resignation"]

1. e4 {[%clk 0:03:00.9]} 1... c5 {[%clk 0:02:57.6]} 2. Nc3 {[%clk 0:03:00.3]}
2... d6 {[%clk 0:02:57.8]} 3. f4 {[%clk 0:02:59.7]} 3... g6 {[%clk 0:02:56.5]}
4. Nf3 {[%clk 0:02:59.8]} 4... Bg7 {[%clk 0:02:51.5]} 5. d3 {[%clk 0:02:58.1]}
5... e6 {[%clk 0:02:44.8]} 6. g3 {[%clk 0:02:57.2]} 6... Ne7 {[%clk 0:02:37.1]}
7. Bg2 {[%clk 0:02:57]} 7... Nbc6 {[%clk 0:02:35.9]} 8. O-O {[%clk 0:02:56.8]}
8... O-O {[%clk 0:02:35.2]} 9. Nh4 {[%clk 0:02:52.2]} 9... f5 {[%clk 0:02:31.6]}
10. Nf3 {[%clk 0:02:48.1]} 10... Rb8 {[%clk 0:02:29.5]} 11. a4 {[%clk
0:02:39.7]} 11... Nd4 {[%clk 0:02:28.9]} 12. Nxd4 {[%clk 0:02:38]} 12... cxd4
{[%clk 0:02:29.8]} 13. Ne2 {[%clk 0:02:37.9]} 13... Bd7 {[%clk 0:02:25.4]} 14.
c3 {[%clk 0:02:31.5]} 14... dxc3 {[%clk 0:02:23.3]} 15. bxc3 {[%clk 0:02:31]}
15... Rc8 {[%clk 0:02:21.9]} 16. Rb1 {[%clk 0:02:20.2]} 16... b6 {[%clk
0:02:21]} 17. d4 {[%clk 0:02:17.5]} 17... Qc7 {[%clk 0:02:15.8]} 18. e5 {[%clk
0:02:13.4]} 18... Nd5 {[%clk 0:02:12.9]} 19. Bxd5 {[%clk 0:02:02.5]} 19... exd5
{[%clk 0:02:13.8]} 20. Ba3 {[%clk 0:02:02.2]} 20... Rfe8 {[%clk 0:02:03.3]} 21.
Bxd6 {[%clk 0:02:00.5]} 21... Qc6 {[%clk 0:02:01.9]} 22. Ra1 {[%clk 0:01:52.8]}
22... Qc4 {[%clk 0:01:59.7]} 23. Rf2 {[%clk 0:01:39.4]} 23... Rc6 {[%clk
0:01:53.1]} 24. Bb4 {[%clk 0:01:37.2]} 24... Rec8 {[%clk 0:01:47.8]} 25. Kg2
{[%clk 0:01:22]} 25... h6 {[%clk 0:01:45]} 26. Ng1 {[%clk 0:01:20.4]} 26... a5
{[%clk 0:01:42.8]} 27. Bd6 {[%clk 0:01:20.4]} 27... Qxc3 {[%clk 0:01:39.7]} 28.
Nf3 {[%clk 0:01:15.6]} 28... Rc4 {[%clk 0:01:39.1]} 29. Ra3 {[%clk 0:01:10.9]}
29... Qc1 {[%clk 0:01:35.7]} 30. Qxc1 {[%clk 0:01:10.4]} 30... Rxc1 {[%clk
0:01:36.6]} 31. Rb2 {[%clk 0:01:05.4]} 31... R8c2+ {[%clk 0:01:32.1]} 32. Rxc2
{[%clk 0:01:04.8]} 32... Rxc2+ {[%clk 0:01:33]} 33. Kh3 {[%clk 0:01:05]} 33...
Kf7 {[%clk 0:01:30.3]} 34. Rb3 {[%clk 0:00:59.2]} 34... Rc6 {[%clk 0:01:28.2]}
35. Ne1 {[%clk 0:00:57.1]} 35... g5 {[%clk 0:01:24.7]} 36. Nd3 {[%clk
0:00:53.9]} 36... g4+ {[%clk 0:01:23.1]} 37. Kh4 {[%clk 0:00:49.5]} 37... Ke6
{[%clk 0:01:21.5]} 38. h3 {[%clk 0:00:43.5]} 38... Bf6+ {[%clk 0:01:00.5]} 39.
exf6 {[%clk 0:00:42.7]} 39... Rxd6 {[%clk 0:00:58.3]} 40. Ne5 {[%clk 0:00:39.9]}
40... Bxa4 {[%clk 0:00:44.2]} 41. f7 {[%clk 0:00:36.4]} 41... Ke7 {[%clk
0:00:41.5]} 42. Rc3 {[%clk 0:00:31.5]} 42... Rd8 {[%clk 0:00:36.1]} 43. Rc7+
{[%clk 0:00:28.9]} 43... Kf6 {[%clk 0:00:36.3]} 44. hxg4 {[%clk 0:00:26.6]}
44... fxg4 {[%clk 0:00:34.9]} 45. Nxg4+ {[%clk 0:00:26.2]} 45... Kg7 {[%clk
0:00:33]} 46. Ne5 {[%clk 0:00:25.3]} 46... Bb3 {[%clk 0:00:19.6]} 47. Nc6 {[%clk
0:00:24]} 47... Rf8 {[%clk 0:00:18.9]} 48. Nd8 {[%clk 0:00:22.1]} 48... Kf6
{[%clk 0:00:17.5]} 49. Nc6 {[%clk 0:00:16.8]} 49... a4 {[%clk 0:00:16.8]} 50.
Ne5 {[%clk 0:00:16.4]} 50... a3 {[%clk 0:00:17]} 51. Nd7+ {[%clk 0:00:16]} 51...
Kg7 {[%clk 0:00:16.5]} 52. Nxf8 {[%clk 0:00:15.9]} 52... Kxf8 {[%clk 0:00:17]}
53. Ra7 {[%clk 0:00:15.6]} 53... a2 {[%clk 0:00:16.5]} 54. g4 {[%clk 0:00:15.5]}
54... Kg7 {[%clk 0:00:14.7]} 55. g5 {[%clk 0:00:15.7]} 55... hxg5+ {[%clk
0:00:13.7]} 56. fxg5 {[%clk 0:00:16.6]} 56... b5 {[%clk 0:00:14.1]} 57. g6
{[%clk 0:00:16.8]} 57... Ba4 {[%clk 0:00:13.8]} 58. Ra8 {[%clk 0:00:15.7]} 58...
a1=Q {[%clk 0:00:11.3]} 59. Rg8+ {[%clk 0:00:15.4]} 1-0

[Event "*** Titled Tuesday Blitz"]
[Site "Chess.com"]
[Date "2020.05.12"]
[Round "6"]
[White "Niclox"]
[Black "Chepaschess"]
[Result "0-1"]
[WhiteElo "2586"]
[BlackElo "2768"]
[TimeControl "180+1"]
[EndTime "11:07:27 PDT"]
[Termination "Chepaschess won by resignation"]

1. e4 {[%clk 0:03:00.9]} 1... c5 {[%clk 0:02:59.6]} 2. Nf3 {[%clk 0:03:00.5]}
2... d6 {[%clk 0:03:00.2]} 3. Bc4 {[%clk 0:03:00.3]} 3... Nf6 {[%clk 0:02:58.6]}
4. e5 {[%clk 0:03:00.4]} 4... dxe5 {[%clk 0:02:55.1]} 5. Nxe5 {[%clk 0:03:01.3]}
5... e6 {[%clk 0:02:55.3]} 6. Qe2 {[%clk 0:03:00.9]} 6... Be7 {[%clk 0:02:46.2]}
7. O-O {[%clk 0:03:00.5]} 7... O-O {[%clk 0:02:45.5]} 8. Re1 {[%clk 0:03:00.9]}
8... Qc7 {[%clk 0:02:42]} 9. a4 {[%clk 0:03:00.1]} 9... Nc6 {[%clk 0:02:41.6]}
10. Nxc6 {[%clk 0:03:00.1]} 10... Qxc6 {[%clk 0:02:42.1]} 11. a5 {[%clk
0:03:01]} 11... Nd5 {[%clk 0:02:26.3]} 12. d3 {[%clk 0:02:53.2]} 12... Bd7
{[%clk 0:02:24.5]} 13. Nc3 {[%clk 0:02:44.2]} 13... Nxc3 {[%clk 0:02:23.8]} 14.
bxc3 {[%clk 0:02:45.1]} 14... Bf6 {[%clk 0:02:23.9]} 15. Bd2 {[%clk 0:02:45.2]}
15... b5 {[%clk 0:02:12.2]} 16. axb6 {[%clk 0:02:38.9]} 16... axb6 {[%clk
0:02:13.1]} 17. Rab1 {[%clk 0:02:39.3]} 17... Qc7 {[%clk 0:02:08.7]} 18. Bb5
{[%clk 0:02:22.9]} 18... Ra2 {[%clk 0:02:04.2]} 19. Bxd7 {[%clk 0:01:59.9]}
19... Qxd7 {[%clk 0:02:05.1]} 20. Rxb6 {[%clk 0:02:00.1]} 20... Rxc2 {[%clk
0:02:02.4]} 21. Rc1 {[%clk 0:01:53.4]} 21... Rxc1+ {[%clk 0:01:59.2]} 22. Bxc1
{[%clk 0:01:54.3]} 22... Bxc3 {[%clk 0:01:59.1]} 23. Be3 {[%clk 0:01:47.6]}
23... Ra8 {[%clk 0:01:51.2]} 24. Rb1 {[%clk 0:01:40.9]} 24... Bd4 {[%clk
0:01:47.4]} 25. h3 {[%clk 0:01:21.5]} 25... h6 {[%clk 0:01:44.7]} 26. Rc1 {[%clk
0:01:17.1]} 26... Ra3 {[%clk 0:01:40]} 27. Bxd4 {[%clk 0:01:04.8]} 27... Qxd4
{[%clk 0:01:38.1]} 28. Rc4 {[%clk 0:01:03.7]} 28... Ra1+ {[%clk 0:01:35.3]} 29.
Kh2 {[%clk 0:01:03]} 29... Qd6+ {[%clk 0:01:36]} 30. g3 {[%clk 0:00:58.1]} 30...
Ra3 {[%clk 0:01:29.5]} 31. Qe3 {[%clk 0:00:53.5]} 31... Rxd3 {[%clk 0:01:24.5]}
32. Qxc5 {[%clk 0:00:53.4]} 32... Qxc5 {[%clk 0:01:16.7]} 33. Rxc5 {[%clk
0:00:53.2]} 33... g5 {[%clk 0:01:17.5]} 34. Kg2 {[%clk 0:00:47]} 34... Rd4
{[%clk 0:01:16.8]} 35. Ra5 {[%clk 0:00:46.1]} 35... Kg7 {[%clk 0:01:17.1]} 36.
Rb5 {[%clk 0:00:45.7]} 36... Kg6 {[%clk 0:01:17.3]} 37. Ra5 {[%clk 0:00:45.9]}
37... h5 {[%clk 0:01:17.8]} 38. Rb5 {[%clk 0:00:45.3]} 38... f6 {[%clk
0:01:14.8]} 39. Ra5 {[%clk 0:00:43.6]} 39... f5 {[%clk 0:01:09.1]} 40. Ra8
{[%clk 0:00:25.8]} 40... h4 {[%clk 0:01:08.8]} 41. Rg8+ {[%clk 0:00:24.2]} 41...
Kf6 {[%clk 0:01:09.1]} 42. gxh4 {[%clk 0:00:12.7]} 42... Rxh4 {[%clk 0:01:08.4]}
43. Rf8+ {[%clk 0:00:09.9]} 43... Kg7 {[%clk 0:01:08]} 44. Re8 {[%clk
0:00:09.1]} 44... Kf7 {[%clk 0:01:08.2]} 45. Ra8 {[%clk 0:00:10]} 45... Rb4
{[%clk 0:01:07.8]} 46. Ra7+ {[%clk 0:00:08.2]} 46... Kf6 {[%clk 0:01:07.7]} 47.
Ra8 {[%clk 0:00:09.1]} 47... Ke5 {[%clk 0:01:06.8]} 48. Ra5+ {[%clk 0:00:08.5]}
48... Kf4 {[%clk 0:01:06.3]} 49. Ra6 {[%clk 0:00:09.4]} 49... e5 {[%clk
0:01:06.2]} 50. Ra3 {[%clk 0:00:09.3]} 50... e4 {[%clk 0:01:05.4]} 51. Rc3
{[%clk 0:00:09]} 51... Rd4 {[%clk 0:01:05.4]} 52. Rb3 {[%clk 0:00:08.3]} 52...
Rd3 {[%clk 0:01:04.4]} 53. Rb4 {[%clk 0:00:08.2]} 53... Rd2 {[%clk 0:01:03.1]}
54. Rb3 {[%clk 0:00:07.6]} 54... Re2 {[%clk 0:01:02.5]} 55. Rc3 {[%clk
0:00:02.5]} 55... e3 {[%clk 0:00:52.8]} 56. Rc4+ {[%clk 0:00:03.1]} 56... Ke5
{[%clk 0:00:53.1]} 57. Kf3 {[%clk 0:00:03.7]} 57... Rxf2+ {[%clk 0:00:52.7]} 58.
Kxe3 {[%clk 0:00:04.6]} 58... Rh2 {[%clk 0:00:53.3]} 59. h4 {[%clk 0:00:04.5]}
59... Rxh4 {[%clk 0:00:52.6]} 60. Rc5+ {[%clk 0:00:05.4]} 60... Ke6 {[%clk
0:00:52.8]} 61. Rc6+ {[%clk 0:00:05.1]} 61... Kd5 {[%clk 0:00:52.8]} 62. Ra6
{[%clk 0:00:06]} 62... Re4+ {[%clk 0:00:52.3]} 63. Kf3 {[%clk 0:00:05.7]} 63...
Rd4 {[%clk 0:00:50.4]} 64. Rg6 {[%clk 0:00:04.2]} 64... Rg4 {[%clk 0:00:49.2]}
65. Ra6 {[%clk 0:00:02.2]} 65... Rd4 {[%clk 0:00:45.9]} 66. Kg3 {[%clk
0:00:03.1]} 66... Ke5 {[%clk 0:00:45.6]} 67. Ra5+ {[%clk 0:00:04]} 67... Rd5
{[%clk 0:00:45.7]} 68. Ra4 {[%clk 0:00:03]} 68... Rc5 {[%clk 0:00:46]} 69. Kf2
{[%clk 0:00:02.7]} 69... f4 {[%clk 0:00:42.9]} 70. Rb4 {[%clk 0:00:03]} 70... g4
{[%clk 0:00:42.5]} 0-1